bitfinex-derivatives/quotes_BTCF0:USTF0_20241125
["timestamp","ask_amount","ask_price","bid_price","bid_amount"]
[1732506517529,2.4019735,97892.0,97891.0,0.18753298]
[1732506517839,2.55495897,97892.0,97891.0,0.00529628]
[1732506518036,2.4019735,97892.0,97891.0,0.00529628]
[1732506519139,2.0954935,97892.0,97891.0,0.00529628]
[1732506519441,2.32870103,97892.0,97891.0,0.00529628]
[1732506519938,2.32869755,97892.0,97891.0,0.00529628]
[1732506520531,2.14512822,97892.0,97891.0,0.00529628]
[1732506521542,0.64512822,97892.0,97891.0,0.00529628]
[1732506522531,0.645127,97892.0,97891.0,0.00529628]
[1732506523733,0.513407,97892.0,97891.0,0.00529628]
[1732506523934,0.645127,97892.0,97891.0,0.00529628]
[1732506524235,0.82869633,97892.0,97891.0,0.00529628]
[1732506524624,0.645127,97892.0,97891.0,0.00529628]
[1732506525023,0.63524072,97892.0,97891.0,0.0004]
[1732506525235,0.94172072,97892.0,97873.0,0.1822367]
[1732506525426,0.411832,97874.0,97873.0,0.1822367]
[1732506525630,0.411832,97874.0,97867.0,0.18208916]
[1732506525631,0.49292001,97874.0,97867.0,0.18208916]
[1732506525833,0.051033,97872.0,97867.0,0.00010212]
[1732506526031,0.051033,97872.0,97867.0,0.18208916]
[1732506526531,0.00040001,97868.0,97867.0,0.18208916]
[1732506526733,0.00040001,97868.0,97867.0,0.23312416]
[1732506527332,0.00040001,97868.0,97867.0,0.05113712]
[1732506534642,0.00040001,97868.0,97867.0,0.23304907]
[1732506535240,0.00040001,97868.0,97867.0,0.05113712]
[1732506540540,0.00040001,97868.0,97867.0,0.29368511]
[1732506540737,0.3608,97874.0,97873.0,0.051032]
[1732506540951,0.54315424,97874.0,97873.0,0.051032]
[1732506541137,0.54315424,97874.0,97873.0,0.051432]
[1732506541339,0.54315424,97874.0,97873.0,0.23338798]
[1732506541647,0.54315424,97874.0,97873.0,0.051432]
[1732506542350,0.54154424,97874.0,97873.0,0.41625865]
[1732506543647,0.53854424,97874.0,97873.0,0.41625865]
[1732506543846,0.53854424,97874.0,97873.0,0.41581567]
[1732506544838,0.48651001,97874.0,97873.0,0.41581567]
[1732506545341,0.3608,97882.0,97873.0,0.36478367]
[1732506545543,0.49112,97882.0,97881.0,0.051028]
[1732506545852,0.49112,97882.0,97881.0,0.051428]
[1732506545853,0.3558,97882.0,97881.0,0.051428]
[1732506546154,0.3558,97882.0,97881.0,0.41474775]
[1732506546350,0.3558,97882.0,97881.0,0.71810155]
[1732506546556,0.3558,97882.0,97881.0,0.41474775]
[1732506548753,0.35079,97882.0,97881.0,0.41474775]
[1732506549139,0.35079,97882.0,97881.0,0.4155061]
[1732506551146,0.13532,97889.0,97881.0,0.4155061]
[1732506551147,0.13532,97889.0,97888.0,0.051025]
[1732506551354,0.13532,97889.0,97888.0,0.29351513]
[1732506551545,0.18606729,97890.0,97888.0,0.29391513]
[1732506551740,0.13532,97890.0,97888.0,0.29391513]
[1732506552046,0.13532,97890.0,97889.0,0.0004]
[1732506552851,0.3608,97891.0,97890.0,0.051024]
[1732506553044,0.49612,97891.0,97890.0,0.051024]
[1732506553239,0.49612,97891.0,97890.0,0.051424]
[1732506554248,0.54727453,97891.0,97890.0,0.0004]
[1732506554443,0.64057453,97891.0,97890.0,0.0004]
[1732506554746,0.64057453,97891.0,97886.0,0.18181008]
[1732506554747,0.051025,97888.0,97886.0,0.18181008]
[1732506554953,0.3608,97887.0,97886.0,0.18181008]
[1732506555143,0.3612,97887.0,97886.0,0.18181008]
[1732506555551,0.051027,97884.0,97883.0,0.24249013]
[1732506555743,0.051028,97882.0,97881.0,0.24249013]
[1732506555945,0.186348,97882.0,97881.0,0.24249013]
[1732506556143,0.05103,97879.0,97877.0,0.30311266]
[1732506556346,0.13572,97882.0,97876.0,0.051031]
[1732506556347,0.05103,97878.0,97876.0,0.051031]
[1732506556544,0.3608,97877.0,97876.0,0.051031]
[1732506556743,0.3612,97877.0,97876.0,0.71438953]
[1732506556946,0.3612,97877.0,97876.0,0.4113561]
[1732506557157,0.49652,97877.0,97876.0,0.3603251]
[1732506557351,0.49652,97877.0,97876.0,0.18182569]
[1732506557552,0.547551,97877.0,97876.0,0.18182569]
[1732506558057,0.49652,97877.0,97872.0,0.051033]
[1732506558356,0.0004,97873.0,97872.0,0.051033]
[1732506558752,0.0308,97873.0,97872.0,0.23285869]
[1732506558954,0.0308,97873.0,97868.0,0.24243426]
[1732506559347,0.0004,97869.0,97868.0,0.29346926]
[1732506559550,0.0004,97869.0,97868.0,0.051035]
[1732506564356,0.0004,97869.0,97868.0,0.41204758]
[1732506564549,0.051034,97870.0,97868.0,0.41204758]
[1732506564750,0.051034,97870.0,97869.0,0.36101258]
[1732506565565,0.051034,97870.0,97869.0,0.36141258]
[1732506566763,0.051034,97870.0,97869.0,0.0004]
[1732506567349,0.14275053,97870.0,97869.0,0.0004]
[1732506567549,0.051034,97870.0,97869.0,0.0004]
[1732506572454,0.186634,97870.0,97869.0,0.0004]
[1732506573161,0.186634,97870.0,97869.0,0.18239696]
[1732506575468,0.186634,97870.0,97869.0,0.0004]
[1732506576565,0.186634,97870.0,97869.0,0.18239696]
[1732506576953,0.186634,97870.0,97869.0,0.0004]
[1732506578461,0.186634,97870.0,97869.0,0.18239696]
[1732506579164,0.547434,97870.0,97869.0,0.18239696]
[1732506579359,0.56785902,97870.0,97869.0,0.18239696]
[1732506579558,0.56785902,97870.0,97869.0,0.0004]
[1732506580468,0.56785902,97870.0,97869.0,0.18225246]
[1732506581163,0.20705902,97870.0,97869.0,0.18225246]
[1732506581364,0.56785902,97870.0,97869.0,0.18225246]
[1732506582576,0.56785902,97870.0,97869.0,0.0004]
[1732506582867,0.56785902,97870.0,97869.0,0.18229865]
[1732506583076,0.52393885,97870.0,97869.0,0.0004]
[1732506583263,0.65957885,97870.0,97869.0,0.0004]
[1732506583569,0.65957885,97870.0,97869.0,0.24318274]
[1732506583771,0.60854485,97870.0,97869.0,0.0004]
[1732506583970,0.38122502,97870.0,97869.0,0.0004]
[1732506584160,0.51686502,97870.0,97869.0,0.0004]
[1732506585168,0.38122502,97870.0,97869.0,0.0004]
[1732506585370,0.60854485,97870.0,97869.0,0.0004]
[1732506586369,0.51186502,97870.0,97869.0,0.0004]
[1732506587170,0.60361607,97870.0,97869.0,0.0004]
[1732506587382,0.51186502,97870.0,97869.0,0.0004]
[1732506589268,0.49644,97870.0,97869.0,0.0004]
[1732506589584,0.5882267,97870.0,97869.0,0.0004]
[1732506589775,0.5882267,97870.0,97869.0,0.0638]
[1732506589966,0.0917867,97872.0,97870.0,0.056034]
[1732506590164,0.36172,97875.0,97869.0,0.37032]
[1732506590165,0.3608,97875.0,97874.0,0.051032]
[1732506590374,0.3558,97875.0,97874.0,0.051032]
[1732506590572,0.3558,97875.0,97874.0,0.051432]
[1732506591281,0.3508,97875.0,97874.0,0.051432]
[1732506591773,0.3488,97875.0,97874.0,0.051432]
[1732506592875,0.3458,97875.0,97874.0,0.051432]
[1732506594571,0.3458,97875.0,97874.0,0.41149901]
[1732506596384,0.0511361,97892.0,97889.0,0.051024]
[1732506596672,0.13236,97890.0,97889.0,0.051024]
[1732506597670,0.15278145,97890.0,97889.0,0.051024]
[1732506598978,0.02042145,97890.0,97889.0,0.051024]
[1732506599180,0.15278145,97890.0,97889.0,0.051024]
[1732506600571,0.20380545,97890.0,97889.0,0.051024]
[1732506601475,0.20380545,97890.0,97889.0,0.23274667]
[1732506601676,0.20380545,97890.0,97889.0,0.051024]
[1732506602784,0.20380545,97890.0,97889.0,0.23271511]
[1732506604386,0.15278145,97890.0,97889.0,0.23271511]
[1732506604684,0.15278145,97890.0,97889.0,0.051024]
[1732506605778,0.20380545,97890.0,97889.0,0.051024]
[1732506605987,0.26690545,97890.0,97889.0,0.23268194]
[1732506606176,0.26690545,97890.0,97882.0,0.3608]
[1732506606177,0.26690545,97890.0,97882.0,0.24253271]
[1732506606377,0.26690545,97890.0,97885.0,0.18165841]
[1732506606378,0.051026,97886.0,97885.0,0.18165841]
[1732506606787,0.051026,97886.0,97885.0,0.051026]
[1732506606975,0.051026,97886.0,97878.0,0.24253271]
[1732506606976,0.0631,97890.0,97889.0,0.051024]
[1732506607174,0.0264,97890.0,97889.0,0.051024]
[1732506607376,0.12736,97890.0,97889.0,0.051024]
[1732506614690,0.05076263,97891.0,97889.0,0.051024]
[1732506614896,0.1324731,97892.0,97891.0,0.056023]
[1732506615082,0.0927067,97894.0,97893.0,0.051022]
[1732506615083,0.13236,97894.0,97893.0,0.051022]
[1732506615282,0.1274731,97894.0,97893.0,0.051022]
[1732506615580,0.1224731,97894.0,97893.0,0.051422]
[1732506616290,0.38122145,97906.0,97893.0,0.051422]
[1732506616291,0.13236,97896.0,97894.0,0.00493757]
[1732506616589,0.0317,97904.0,97899.0,0.051019]
[1732506616791,0.23236,97900.0,97899.0,0.29323483]
[1732506616991,0.23236,97900.0,97899.0,0.051419]
[1732506617189,0.23236,97900.0,97899.0,0.29362297]
[1732506617382,0.23236,97900.0,97899.0,0.051419]
[1732506617383,0.23246601,97900.0,97899.0,0.051419]
[1732506617990,0.10010601,97900.0,97899.0,0.051419]
[1732506618381,0.23246601,97900.0,97899.0,0.29370587]
[1732506618610,0.23246601,97900.0,97899.0,0.051419]
[1732506619291,0.10010601,97900.0,97899.0,0.051419]
[1732506620385,0.09510601,97900.0,97899.0,0.051419]
[1732506624393,0.0917867,97922.0,97900.0,0.31144]
[1732506624693,0.09166297,97911.0,97908.0,0.3608]
[1732506624883,0.09166097,97914.0,97908.0,0.3608]
[1732506625090,0.09166097,97914.0,97913.0,0.051012]
[1732506625398,0.12221729,97917.0,97916.0,0.05101]
[1732506625689,0.18311729,97921.0,97917.0,0.00491768]
[1732506625894,0.18311729,97921.0,97916.0,0.0004]
[1732506625895,0.05099232,97921.0,97920.0,0.051008]
[1732506626098,0.05099232,97921.0,97920.0,0.051408]
[1732506626395,0.15288438,97929.0,97928.0,0.051004]
[1732506626396,0.1527657,97929.0,97928.0,0.051004]
[1732506626593,0.21222962,97930.0,97929.0,0.00501]
[1732506626798,0.20721962,97930.0,97928.0,0.051404]
[1732506626987,0.07569962,97930.0,97929.0,0.0004]
[1732506627189,0.20721962,97930.0,97929.0,0.0004]
[1732506627889,0.15671,97930.0,97929.0,0.0004]
[1732506628390,0.14731204,97930.0,97929.0,0.0004]
[1732506628595,0.15667,97930.0,97929.0,0.0004]
[1732506629192,0.18917,97930.0,97929.0,0.0004]
[1732506632297,0.05769,97930.0,97929.0,0.0004]
[1732506632599,0.18917,97930.0,97929.0,0.0004]
[1732506632794,0.0325,97930.0,97929.0,0.0004]
[1732506633492,0.0285,97930.0,97929.0,0.0004]
[1732506634590,0.0275,97930.0,97929.0,0.0004]
[1732506635199,0.00011368,97932.0,97930.0,0.051003]
[1732506635493,0.0305,97934.0,97933.0,0.051001]
[1732506635698,0.02561368,97934.0,97933.0,0.051001]
[1732506635897,0.02561368,97934.0,97933.0,0.051401]
[1732506636295,0.02561368,97934.0,97933.0,0.0004]
[1732506636296,0.07661468,97934.0,97933.0,0.0004]
[1732506636495,0.07668788,97934.0,97933.0,0.0004]
[1732506636993,0.20816788,97934.0,97933.0,0.0004]
[1732506637399,0.20816788,97934.0,97929.0,0.051003]
[1732506637599,0.051005,97926.0,97924.0,0.3608]
[1732506637902,0.0316,97925.0,97924.0,0.3608]
[1732506638204,0.0316,97925.0,97922.0,0.051007]
[1732506638584,0.0004,97923.0,97922.0,0.051007]
[1732506639691,0.0004,97923.0,97922.0,0.23264112]
[1732506639994,0.0004,97923.0,97922.0,0.051007]
[1732506640495,0.0004,97923.0,97922.0,0.23264112]
[1732506642091,0.0004,97923.0,97922.0,0.051007]
[1732506643803,0.0004,97923.0,97922.0,0.29318343]
[1732506644303,0.0004,97923.0,97922.0,0.051007]
[1732506644693,0.0004,97923.0,97922.0,0.29318343]
[1732506645207,0.0004,97923.0,97922.0,0.051007]
[1732506645705,0.0004,97923.0,97922.0,0.2927294]
[1732506646098,0.0004,97923.0,97922.0,0.051007]
[1732506649600,0.0004,97923.0,97922.0,0.23232591]
[1732506649797,0.0004,97923.0,97922.0,0.051007]
[1732506650608,0.0004,97923.0,97922.0,0.23232591]
[1732506651503,0.0004,97923.0,97922.0,0.051007]
[1732506651701,0.052189,97928.0,97927.0,0.051004]
[1732506651903,0.0004,97930.0,97929.0,0.051003]
[1732506652497,0.13148,97931.0,97930.0,0.0046]
[1732506652696,0.12688,97931.0,97929.0,0.051003]
[1732506652908,0.12245791,97933.0,97931.0,0.051002]
[1732506653105,0.13148,97932.0,97931.0,0.051002]
[1732506653503,0.22303791,97932.0,97931.0,0.051002]
[1732506654198,0.13148,97932.0,97931.0,0.051002]
[1732506658608,0.13148,97932.0,97931.0,0.35372253]
[1732506659105,0.13148,97932.0,97931.0,0.42387163]
[1732506659506,0.13148,97932.0,97931.0,0.72698967]
[1732506659804,0.13148,97932.0,97931.0,0.42387163]
[1732506660009,0.12647,97932.0,97931.0,0.42387163]
[1732506660812,0.051002,97931.0,97929.0,0.25322705]
[1732506661009,0.051002,97931.0,97929.0,0.09286402]
[1732506661306,0.05101,97917.0,97914.0,0.051011]
[1732506661508,0.13184,97916.0,97915.0,0.37578816]
[1732506661897,0.13184,97916.0,97914.0,0.051011]
[1732506662508,0.12237662,97919.0,97917.0,0.05101]
[1732506662700,0.09176003,97921.0,97919.0,0.005]
[1732506663009,0.09176003,97927.0,97921.0,0.005]
[1732506663212,0.21860003,97928.0,97926.0,0.411805]
[1732506663407,0.08176003,97928.0,97927.0,0.0329]
[1732506663627,0.12237662,97933.0,97932.0,0.051002]
[1732506663907,0.1319132,97934.0,97932.0,0.051402]
[1732506664309,0.12233572,97933.0,97932.0,0.051002]
[1732506664507,0.1319132,97934.0,97932.0,0.051002]
[1732506667009,7.32e-05,97934.0,97932.0,0.051002]
[1732506667215,0.13184,97933.0,97932.0,0.051002]
[1732506669009,7.32e-05,97934.0,97932.0,0.051002]
[1732506669219,0.13184,97933.0,97932.0,0.051002]
[1732506669412,7.32e-05,97934.0,97932.0,0.051002]
[1732506669614,7.32e-05,97934.0,97933.0,7.41e-05]
[1732506676821,0.12238556,97934.0,97933.0,7.41e-05]
[1732506677012,7.32e-05,97934.0,97933.0,7.41e-05]
[1732506677525,0.3063932,97934.0,97933.0,7.41e-05]
[1732506677718,0.35600134,97934.0,97927.0,0.0004]
[1732506677918,0.411804,97928.0,97927.0,0.0003259]
[1732506678224,0.59390182,97928.0,97912.0,0.05254362]
[1732506678418,0.12232768,97917.0,97912.0,0.05254362]
[1732506678632,0.28706768,97916.0,97912.0,0.05254362]
[1732506679321,0.12232768,97915.0,97912.0,0.00153162]
[1732506679517,0.12232768,97916.0,97914.0,0.051011]
[1732506679723,0.12684,97915.0,97914.0,0.051011]
[1732506680219,0.3608,97918.0,97913.0,0.0302]
[1732506680425,0.13184,97918.0,97917.0,0.05101]
[1732506680913,0.13084,97918.0,97917.0,0.05101]
[1732506683227,0.13084,97918.0,97912.0,0.00153162]
[1732506683530,0.05101,97916.0,97913.0,0.051012]
[1732506683829,0.05101,97916.0,97914.0,0.051011]
[1732506684526,0.25316768,97918.0,97916.0,0.05101]
[1732506685029,0.13084,97918.0,97917.0,0.0004]
[1732506685234,0.181849,97918.0,97917.0,0.0004]
[1732506685421,0.051009,97918.0,97917.0,0.0004]
[1732506685623,0.489249,97918.0,97917.0,0.0004]
[1732506686328,0.519649,97918.0,97917.0,0.0004]
[1732506687025,0.213249,97918.0,97917.0,0.0004]
[1732506687225,0.3608,97920.0,97917.0,0.0004]
[1732506687431,0.13164,97919.0,97917.0,0.051409]
[1732506687730,0.3608,97920.0,97917.0,0.051009]
[1732506687918,0.13664,97919.0,97917.0,0.051009]
[1732506688233,0.3608,97920.0,97918.0,0.051009]
[1732506688531,0.13668,97919.0,97918.0,0.051009]
[1732506692023,0.13712448,97919.0,97918.0,0.051009]
[1732506692227,0.13712448,97919.0,97916.0,0.18143448]
[1732506692422,0.13712448,97919.0,97915.0,0.18143448]
[1732506692423,0.05101,97917.0,97915.0,0.18143448]
[1732506692632,0.05141,97917.0,97915.0,0.18143448]
[1732506693136,0.05141,97917.0,97916.0,0.18143448]
[1732506693537,0.05141,97917.0,97915.0,0.18143448]
[1732506693724,0.0312,97916.0,97915.0,0.18143448]
[1732506693923,0.08261,97916.0,97914.0,0.18143448]
[1732506694434,0.0004,97915.0,97914.0,0.18134464]
[1732506694636,0.051411,97915.0,97914.0,0.18134464]
[1732506694830,0.051011,97914.0,97909.0,0.051013]
[1732506695025,0.0004,97915.0,97913.0,0.051012]
[1732506695232,0.13708,97917.0,97916.0,0.05101]
[1732506695233,0.0004,97917.0,97916.0,0.05101]
[1732506695430,0.13708,97917.0,97916.0,0.08141]
[1732506695728,0.13208,97917.0,97916.0,0.08181]
[1732506696129,0.13208,97917.0,97916.0,0.05141]
[1732506696325,0.13208,97917.0,97916.0,0.0004]
[1732506696524,0.49288,97917.0,97916.0,0.0004]
[1732506696731,0.13208,97917.0,97916.0,0.0004]
[1732506697237,0.13208,97917.0,97916.0,0.18182283]
[1732506697420,0.13208,97917.0,97916.0,0.18185486]
[1732506698023,0.13208,97917.0,97916.0,0.0004]
[1732506699020,0.13208,97917.0,97916.0,0.18189993]
[1732506699538,0.13208,97917.0,97916.0,0.0004]
[1732506704131,0.49288,97917.0,97916.0,0.0004]
[1732506704323,0.49748,97917.0,97916.0,0.0004]
[1732506705125,0.13668,97917.0,97916.0,0.0004]
[1732506715748,0.13668,97917.0,97916.0,0.1823361]
[1732506715943,0.50728,97917.0,97916.0,0.0004]
[1732506716134,0.6164627,97917.0,97897.0,0.30226389]
[1732506716444,0.6164627,97917.0,97889.0,0.30226389]
[1732506716445,0.051023,97891.0,97889.0,0.30226389]
[1732506716639,0.187703,97891.0,97887.0,0.051025]
[1732506716837,0.188103,97891.0,97887.0,0.051025]
[1732506717841,0.188103,97891.0,97889.0,0.051024]
[1732506718239,0.23828672,97891.0,97889.0,0.051024]
[1732506721242,0.18726372,97891.0,97886.0,0.24212778]
[1732506721557,0.051424,97889.0,97885.0,0.29328212]
[1732506721853,0.051424,97889.0,97886.0,0.051025]
[1732506724351,0.051424,97889.0,97885.0,0.00012834]
[1732506728550,0.0004,97889.0,97887.0,0.051025]
[1732506728853,0.13864,97897.0,97889.0,0.0046]
[1732506729045,0.13364,97897.0,97893.0,0.3608]
[1732506729242,0.13364,97897.0,97896.0,0.05142]
[1732506729753,0.13864,97897.0,97896.0,0.05142]
[1732506730854,0.13864,97897.0,97896.0,0.41222]
[1732506731248,0.13864,97897.0,97896.0,0.05142]
[1732506733751,0.13864,97897.0,97896.0,0.0004]
[1732506736462,0.13864,97897.0,97896.0,0.3612]
[1732506736652,0.13864,97897.0,97896.0,0.0004]
[1732506738549,0.17034,97897.0,97896.0,0.0004]
[1732506741849,0.29276511,97897.0,97896.0,0.0004]
[1732506742565,0.17034,97897.0,97896.0,0.0004]
[1732506743957,0.32337139,97897.0,97896.0,0.0004]
[1732506744261,0.17034,97897.0,97896.0,0.0004]
[1732506751670,0.051026,97886.0,97885.0,0.00012834]
[1732506751867,0.556986,97886.0,97885.0,0.00012834]
[1732506752073,0.557386,97886.0,97885.0,0.00012834]
[1732506755065,0.196586,97886.0,97885.0,0.00012834]
[1732506757576,0.19669018,97886.0,97885.0,0.00012834]
[1732506757875,0.31899776,97886.0,97885.0,0.00012834]
[1732506758380,0.36991346,97886.0,97885.0,0.00012834]
[1732506759171,0.24760588,97886.0,97885.0,0.00012834]
[1732506760981,0.24300588,97886.0,97885.0,0.00012834]
[1732506762580,0.23800588,97886.0,97885.0,0.00012834]
[1732506763185,0.22900588,97886.0,97885.0,0.00012834]
[1732506763681,0.08384588,97886.0,97885.0,0.00012834]
[1732506763881,0.22900588,97886.0,97885.0,0.00012834]
[1732506764480,0.08384588,97886.0,97885.0,0.00012834]
[1732506764678,0.22900588,97886.0,97885.0,0.00012834]
[1732506767279,0.24442909,97886.0,97885.0,0.00012834]
[1732506767979,0.23942909,97886.0,97885.0,0.00012834]
[1732506768390,0.36173667,97886.0,97885.0,0.00012834]
[1732506768702,0.23942909,97886.0,97885.0,0.00012834]
[1732506769692,0.21700309,97886.0,97885.0,0.00012834]
[1732506770902,0.26802909,97886.0,97885.0,0.00012834]
[1732506774092,0.31766603,97886.0,97885.0,0.00012834]
[1732506775190,0.051027,97885.0,97868.0,0.03]
[1732506775388,0.1224104,97871.0,97868.0,0.03]
[1732506775589,0.051435,97869.0,97868.0,0.03]
[1732506776187,0.1738454,97869.0,97868.0,0.03]
[1732506776588,0.1228104,97869.0,97860.0,0.0613]
[1732506776794,0.3608,97862.0,97860.0,0.0613]
[1732506776986,0.14252,97861.0,97860.0,0.0613]
[1732506782591,0.14252,97861.0,97856.0,0.0313]
[1732506782803,0.051041,97857.0,97856.0,0.0313]
[1732506783096,0.051042,97855.0,97854.0,0.00011838]
[1732506783497,0.051442,97855.0,97854.0,0.00011838]
[1732506786110,0.10302844,97855.0,97854.0,0.00011838]
[1732506786603,0.05198644,97855.0,97854.0,0.00011838]
[1732506786798,0.28579157,97855.0,97854.0,0.00011838]
[1732506787001,0.19214644,97855.0,97854.0,0.00011838]
[1732506787305,0.19014644,97855.0,97854.0,0.00011838]
[1732506787499,0.18854645,97855.0,97854.0,0.00011838]
[1732506788396,0.18854645,97855.0,97854.0,0.2424104]
[1732506789204,0.18854645,97855.0,97854.0,0.00011838]
[1732506791710,0.18413645,97855.0,97854.0,0.00011838]
[1732506800810,0.54493645,97855.0,97854.0,0.00011838]
[1732506801617,0.59597845,97855.0,97854.0,0.00011838]
[1732506804111,0.68762358,97855.0,97854.0,0.00011838]
[1732506804418,0.59597845,97855.0,97854.0,0.00011838]
[1732506804618,0.71838885,97855.0,97854.0,0.00011838]
[1732506805329,0.59597845,97855.0,97854.0,0.00011838]
[1732506806626,0.15301301,97863.0,97854.0,0.00011838]
[1732506806823,0.15301301,97862.0,97860.0,0.051039]
[1732506807012,0.14036,97861.0,97860.0,0.051039]
[1732506807213,0.14848995,97861.0,97860.0,0.051039]
[1732506807429,0.2708993,97861.0,97860.0,0.051039]
[1732506807623,0.14848995,97861.0,97860.0,0.051039]
[1732506810719,0.14848995,97861.0,97860.0,0.29333102]
[1732506811427,0.14848995,97861.0,97860.0,0.051039]
[1732506811929,0.14848995,97861.0,97860.0,0.29333102]
[1732506812425,0.14848995,97861.0,97860.0,0.051039]
[1732506814531,0.14348995,97861.0,97860.0,0.051039]
[1732506814835,0.14348995,97861.0,97860.0,0.035039]
[1732506816730,0.15315873,97861.0,97860.0,0.035039]
[1732506817927,0.15315873,97861.0,97860.0,0.27766555]
[1732506819329,0.15315873,97861.0,97860.0,0.035039]
[1732506821734,0.14348995,97861.0,97860.0,0.035039]
[1732506822825,0.00312995,97861.0,97860.0,0.035039]
[1732506823027,0.09179639,97865.0,97861.0,0.00187005]
[1732506823320,0.09179639,97871.0,97865.0,0.00999005]
[1732506823522,0.09179639,97875.0,97872.0,0.051033]
[1732506823731,0.07993634,97875.0,97874.0,0.051032]
[1732506823923,0.07993634,97875.0,97873.0,0.3608]
[1732506823924,0.14036,97879.0,97873.0,0.3608]
[1732506824124,0.14036,97879.0,97878.0,0.05103]
[1732506824331,0.14036,97879.0,97878.0,0.05143]
[1732506824928,0.12240558,97882.0,97878.0,0.05143]
[1732506824929,0.26276558,97880.0,97878.0,0.05143]
[1732506825335,0.26276558,97880.0,97879.0,0.0004]
[1732506825541,0.14036,97880.0,97879.0,0.0004]
[1732506826735,0.15006102,97880.0,97879.0,0.0004]
[1732506828837,0.15002102,97880.0,97879.0,0.0004]
[1732506832832,0.00970102,97880.0,97879.0,0.0004]
[1732506833136,0.15002102,97880.0,97879.0,0.0004]
[1732506835029,0.1584691,97880.0,97879.0,0.0004]
[1732506835736,0.15876715,97880.0,97879.0,0.0004]
[1732506836437,0.17228407,97880.0,97879.0,0.0004]
[1732506837241,0.17228407,97880.0,97873.0,0.18179348]
[1732506837242,0.051031,97876.0,97873.0,0.18179348]
[1732506837446,0.01844715,97875.0,97873.0,0.18179348]
[1732506837743,0.01844715,97874.0,97873.0,0.18179348]
[1732506838545,0.01844715,97874.0,97872.0,0.051033]
[1732506838749,0.01844715,97873.0,97872.0,0.051033]
[1732506839045,0.01884715,97873.0,97872.0,0.051033]
[1732506839636,0.01863414,97873.0,97872.0,0.051033]
[1732506839841,0.00884808,97873.0,97872.0,0.051033]
[1732506840041,0.01861975,97873.0,97872.0,0.051033]
[1732506840844,0.15541975,97873.0,97872.0,0.051033]
[1732506842143,0.15542312,97873.0,97872.0,0.051033]
[1732506842344,0.15041312,97873.0,97872.0,0.051033]
[1732506842640,0.26304366,97873.0,97872.0,0.051033]
[1732506844042,0.26304366,97873.0,97872.0,0.411833]
[1732506844641,0.14063808,97873.0,97872.0,0.411833]
[1732506845336,0.19126687,97873.0,97872.0,0.411833]
[1732506845647,0.31367245,97873.0,97872.0,0.411833]
[1732506845835,0.31940121,97873.0,97872.0,0.411833]
[1732506846040,0.19699564,97873.0,97872.0,0.411833]
[1732506846242,0.31940122,97873.0,97872.0,0.411833]
[1732506846441,0.19699564,97873.0,97872.0,0.411833]
[1732506846835,0.18726687,97873.0,97872.0,0.411833]
[1732506850942,0.05062879,97873.0,97872.0,0.411833]
[1732506851146,0.1368,97873.0,97872.0,0.411833]
[1732506852656,0.1368,97873.0,97872.0,1.0555104]
[1732506853753,0.1368,97873.0,97872.0,0.75324651]
[1732506853961,0.1368,97873.0,97872.0,0.71549473]
[1732506854146,0.1368,97873.0,97872.0,1.05717424]
[1732506854348,0.1368,97873.0,97872.0,0.75351251]
[1732506855252,0.1318,97873.0,97872.0,0.75351251]
[1732506855551,0.1318,97873.0,97872.0,1.05718125]
[1732506855757,0.1318,97873.0,97872.0,1.05718214]
[1732506856049,0.1268,97873.0,97872.0,1.05718214]
[1732506856247,0.1218,97873.0,97872.0,1.05718214]
[1732506856443,0.1218,97873.0,97872.0,0.75351251]
[1732506856856,0.1218,97873.0,97872.0,1.0572342]
[1732506857053,0.1218,97873.0,97872.0,0.71555469]
[1732506857355,0.1218,97873.0,97872.0,0.75537496]
[1732506860752,0.172832,97873.0,97872.0,0.75537496]
[1732506860950,0.172832,97873.0,97872.0,0.75342825]
[1732506861652,0.172832,97873.0,97872.0,1.05734647]
[1732506861849,0.172832,97873.0,97872.0,0.7535487]
[1732506862455,0.172832,97873.0,97872.0,0.71577222]
[1732506862456,0.1218,97873.0,97872.0,0.71577222]
[1732506862660,0.12990756,97873.0,97872.0,0.051033]
[1732506863050,0.12990756,97873.0,97872.0,0.39169133]
[1732506863551,0.1218,97873.0,97872.0,0.39169133]
[1732506864350,0.1218,97873.0,97872.0,0.69564055]
[1732506864550,0.1218,97873.0,97872.0,0.051033]
[1732506865253,0.20404301,97878.0,97875.0,0.051031]
[1732506865449,0.184311,97877.0,97875.0,0.23339773]
[1732506865751,0.051032,97873.0,97872.0,0.24315374]
[1732506865950,0.051032,97873.0,97870.0,0.0004]
[1732506865951,0.051034,97871.0,97870.0,0.1827939]
[1732506866151,0.41995187,97871.0,97870.0,0.0004]
[1732506866352,0.46958804,97871.0,97870.0,0.0004]
[1732506867354,0.10878804,97871.0,97870.0,0.0004]
[1732506867555,0.05915187,97871.0,97870.0,0.0004]
[1732506867755,0.57309698,97871.0,97870.0,0.0004]
[1732506867951,0.42003477,97871.0,97870.0,0.0004]
[1732506868360,0.57309538,97871.0,97870.0,0.0004]
[1732506868961,0.46967179,97871.0,97870.0,0.0004]
[1732506869966,0.51966452,97871.0,97870.0,0.0004]
[1732506870655,0.70326726,97871.0,97870.0,0.0004]
[1732506871562,0.51966452,97871.0,97870.0,0.0004]
[1732506871762,0.15886452,97871.0,97870.0,0.0004]
[1732506872659,0.1092275,97871.0,97870.0,0.0004]
[1732506875661,0.10923511,97871.0,97870.0,0.0004]
[1732506876670,0.10923511,97871.0,97856.0,0.1823939]
[1732506876671,0.05104,97858.0,97856.0,0.1823939]
[1732506876861,0.05104,97858.0,97854.0,0.00011838]
[1732506876862,0.14152838,97857.0,97855.0,0.1823939]
[1732506877171,0.05964938,97856.0,97855.0,0.1823939]
[1732506877358,0.05964938,97856.0,97854.0,0.00011838]
[1732506877557,0.00820838,97855.0,97854.0,0.00011838]
[1732506877760,0.00860838,97855.0,97854.0,0.18251228]
[1732506878659,0.00860838,97855.0,97854.0,0.00011838]
[1732506879566,0.13084666,97855.0,97854.0,0.00011838]
[1732506879868,0.00854153,97855.0,97854.0,0.00011838]
[1732506880369,0.13084666,97855.0,97854.0,0.00011838]
[1732506881377,0.05854571,97855.0,97854.0,0.00011838]
[1732506883173,0.05867479,97855.0,97854.0,0.00011838]